fUSD/lending_fUSD_20250104
["ID","MTS","AMOUNT","RATE_DAILY","PERIOD"]
[347614923,1735953039671,-195.68765351,0.00011512,2]
[347614924,1735953039681,-500.0,0.00011512,2]
[347614925,1735953039690,-500.0,0.00011512,2]
[347614926,1735953039699,-121.39297602,0.00011512,2]
[347614927,1735953039719,-378.60702398,0.00011512,2]
[347614928,1735953039728,-500.0,0.00011512,2]
[347614929,1735953039737,-500.0,0.00011512,2]
[347614930,1735953039747,-500.0,0.00011512,2]
[347614931,1735953039756,-525.69,0.00011512,2]
[347614932,1735953039765,-500.0,0.00011512,2]
[347614933,1735953039774,-500.0,0.00011512,2]
[347614934,1735953039785,-500.0,0.00011512,2]
[347614935,1735953039794,-438.35159371,0.00011512,2]
[347614936,1735953039808,-61.64840629,0.00011512,2]
[347614937,1735953039818,-500.0,0.00011512,2]
[347614938,1735953039827,-500.0,0.00011512,2]
[347614939,1735953039836,-500.0,0.00011512,2]
[347614940,1735953039847,-500.0,0.00011512,2]
[347614941,1735953039856,-500.0,0.00011512,2]
[347614942,1735953039865,-500.0,0.00011512,2]
[347614943,1735953039874,-500.0,0.00011512,2]
[347614944,1735953039884,-440.36,0.00011512,2]
[347614945,1735953039893,-500.0,0.00011512,2]
[347614946,1735953039902,-301.89324371,0.00011512,2]
[347614947,1735953039913,-198.10675629,0.00011512,2]
[347614948,1735953039923,-239.1145072,0.00011512,2]
[347614949,1735953039934,-476.1954928,0.00011512,2]
[347614951,1735953039943,-500.0,0.00011512,2]
[347614952,1735953039952,-410.79,0.00011512,2]
[347614953,1735953039961,-687.24,0.00011512,2]
[347614954,1735953039970,-500.0,0.00011512,2]
[347614955,1735953039979,-500.0,0.00011512,2]
[347614956,1735953039989,-646.73,0.00011512,2]
[347614957,1735953039998,-500.0,0.00011512,2]
[347614958,1735953040008,-608.34,0.00011512,2]
[347614959,1735953040019,-500.0,0.00011512,2]
[347614960,1735953040028,-1406.07,0.00011512,2]
[347614961,1735953040037,-500.0,0.00011512,2]
[347614962,1735953040046,-500.0,0.00011512,2]
[347614963,1735953040055,-500.0,0.00011512,2]
[347614964,1735953040064,-500.0,0.00011512,2]
[347614965,1735953040074,-500.0,0.00011512,2]
[347614966,1735953040083,-500.0,0.00011512,2]
[347614967,1735953040093,-1072.21,0.00011512,2]
[347614968,1735953040103,-3421.06,0.00011512,2]
[347614969,1735953040111,-762.66,0.00011512,2]
[347614970,1735953040122,-500.0,0.00011512,2]
[347614971,1735953040131,-54.6718312,0.00011512,2]
[347614972,1735953040143,-914.9181688,0.00011512,2]
[347614973,1735953040153,-671.7,0.00011512,2]
[347614974,1735953040162,-1096.43,0.00011512,2]
[347614975,1735953040171,-1551.52,0.00011512,2]
[347614976,1735953040181,-500.0,0.00011512,2]
[347614977,1735953040191,-500.0,0.00011512,2]
[347614978,1735953040201,-500.0,0.00011512,2]
[347614979,1735953040210,-515.51,0.00011512,2]
[347614980,1735953040221,-500.0,0.00011512,2]
[347614981,1735953040231,-670.29,0.00011512,2]
[347614982,1735953040240,-500.0,0.00011512,2]
[347614983,1735953040249,-66.95669727,0.00011512,2]
[347614984,1735953040266,-550.473753,0.00011512,2]
[347614985,1735953040278,-301.91055826,0.00011512,2]
[347614986,1735953040305,-2894.16899147,0.00011512,2]
[347614987,1735953040318,-500.0,0.00011512,2]
[347614988,1735953040327,-500.0,0.00011512,2]
[347614989,1735953040336,-691.05,0.00011512,2]
[347614990,1735953040347,-500.0,0.00011512,2]
[347614991,1735953040357,-500.0,0.00011512,2]
[347614992,1735953040366,-1570.33,0.00011512,2]
[347614993,1735953040375,-500.0,0.00011512,2]
[347614994,1735953040385,-500.0,0.00011512,2]
[347614995,1735953040401,-500.0,0.00011512,2]
[347614996,1735953040411,-726.17,0.00011512,2]
[347614997,1735953040420,-500.0,0.00011512,2]
[347614998,1735953040429,-2155.54,0.00011512,2]
[347614999,1735953040438,-596.94,0.00011512,2]
[347615000,1735953040447,-941.46,0.00011512,2]
[347615001,1735953040456,-1387.53,0.00011512,2]
[347615002,1735953040465,-500.0,0.00011512,2]
[347615003,1735953040474,-500.0,0.00011512,2]
[347615004,1735953040483,-776.67,0.00011512,2]
[347615005,1735953040492,-596.88,0.00011512,2]
[347615006,1735953040501,-722.13,0.00011512,2]
[347615007,1735953040510,-651.13,0.00011512,2]
[347615008,1735953040519,-500.0,0.00011512,2]
[347615009,1735953040528,-500.0,0.00011512,2]
[347615010,1735953040537,-1007.24,0.00011512,2]
[347615011,1735953040546,-625.44,0.00011512,2]
[347615012,1735953040555,-500.0,0.00011512,2]
[347615013,1735953040565,-2942.0,0.00011512,2]
[347615014,1735953040575,-1132.8,0.00011512,2]
[347615015,1735953040585,-728.03,0.00011512,2]
[347615016,1735953040595,-1010.66,0.00011512,2]
[347615017,1735953040604,-638.04,0.00011512,2]
[347615018,1735953040613,-500.0,0.00011512,2]
[347615019,1735953040623,-1084.91,0.00011512,2]
[347615020,1735953040634,-1023.13,0.00011512,2]
[347615021,1735953040644,-2065.7,0.00011512,2]
[347615022,1735953040654,-500.0,0.00011512,2]
[347615023,1735953040663,-665.59,0.00011512,2]
[347615024,1735953040672,-809.54,0.00011512,2]
[347615025,1735953040682,-500.0,0.00011512,2]
[347615026,1735953040692,-500.0,0.00011512,2]
[347615027,1735953040701,-692.43,0.00011512,2]
[347615028,1735953040712,-1320.88,0.00011512,2]
[347615029,1735953040721,-500.0,0.00011533,2]
[347615030,1735953040732,-1221.81,0.00011533,2]
[347615031,1735953040743,-500.0,0.00011533,2]
[347615032,1735953040752,-925.48,0.00011533,2]
[347615033,1735953040761,-3874.45,0.00011533,2]
[347615034,1735953040771,-500.0,0.00011533,2]
[347615035,1735953040780,-329.07,0.00011533,2]
[347615036,1735953040789,-641.64,0.00011533,2]
[347615037,1735953040799,-1441.16,0.00011533,2]
[347615038,1735953040809,-2109.95,0.00011533,2]
[347615039,1735953040818,-500.0,0.00011533,2]
[347615040,1735953040827,-500.0,0.00011533,2]
[347615041,1735953040837,-721.71,0.00011533,2]
[347615042,1735953040848,-843.41,0.00011533,2]
[347615043,1735953040857,-323.11,0.00011554,2]
[347615044,1735953040867,-300.0,0.00011578,2]
[347615045,1735953040877,-1000.0,0.00011595,2]
[347615046,1735953040887,-312.36,0.0001168,2]
[347615047,1735953040896,-500.0,0.00011726,2]
[347615048,1735953040906,-1196.85,0.00011783,2]
[347615049,1735953040915,-1166.32,0.00011783,2]
[347615050,1735953040925,-577.84,0.00011783,2]
[347615051,1735953040935,-1112.27,0.00011783,2]
[347615052,1735953040944,-500.0,0.00011783,2]
[347615053,1735953040953,-1316.86,0.00011783,2]
[347615054,1735953040962,-500.0,0.00011783,2]
[347615055,1735953040972,-500.0,0.00011783,2]
[347615056,1735953040981,-500.0,0.00011783,2]
[347615057,1735953040991,-500.0,0.00011784,2]
[347615058,1735953041000,-500.0,0.00011784,2]
[347615059,1735953041009,-525.64,0.00011784,2]
[347615060,1735953041018,-500.0,0.00011784,2]
[347615061,1735953041029,-543.05,0.00011784,2]
[347615062,1735953041038,-542.61,0.00011784,2]
[347615063,1735953041048,-307.0,0.00011784,2]
[347615064,1735953041057,-158.8,0.00011784,2]
[347615065,1735953041067,-500.0,0.00011784,2]
[347615066,1735953041076,-176.81,0.00011784,2]
[347615067,1735953041085,-500.0,0.00011784,2]
[347615068,1735953041095,-500.0,0.00011784,2]
[347615069,1735953041106,-500.0,0.00011784,2]
[347615070,1735953041115,-500.0,0.00011784,2]
[347615071,1735953041124,-500.0,0.00011784,2]
[347615072,1735953041134,-500.0,0.00011784,2]
[347615073,1735953041143,-500.0,0.00011784,2]
[347615074,1735953041152,-500.0,0.00011784,2]
[347615075,1735953041161,-500.0,0.00011784,2]
[347615076,1735953041171,-584.34,0.00011784,2]
[347615077,1735953041180,-500.0,0.00011784,2]
[347615078,1735953041191,-500.0,0.00011784,2]
[347615079,1735953041201,-500.0,0.00011784,2]
[347615080,1735953041211,-536.8,0.00011784,2]
[347615081,1735953041220,-500.0,0.00011784,2]
[347615082,1735953041229,-500.0,0.00011784,2]
[347615083,1735953041238,-500.0,0.00011784,2]
[347615084,1735953041247,-500.0,0.00011784,2]
[347615085,1735953041256,-500.0,0.00011784,2]
[347615086,1735953041265,-500.0,0.00011784,2]
[347615087,1735953041274,-500.0,0.00011784,2]
[347615088,1735953041283,-500.0,0.00011784,2]
[347615089,1735953041293,-500.0,0.00011784,2]
[347615090,1735953041303,-500.0,0.00011784,2]
[347615091,1735953041314,-500.0,0.00011784,2]
[347615092,1735953041327,-767.42,0.00011784,2]
[347615093,1735953041336,-500.0,0.00011784,2]
[347615094,1735953041345,-500.0,0.00011784,2]
[347615095,1735953041354,-500.0,0.00011784,2]
[347615096,1735953041365,-500.0,0.00011784,2]
[347615097,1735953041374,-500.0,0.00011784,2]
[347615098,1735953041395,-500.0,0.00011784,2]
[347615099,1735953041413,-500.0,0.00011784,2]
[347615100,1735953041422,-500.0,0.00011784,2]
[347615101,1735953041431,-667.45,0.00011784,2]
[347615102,1735953041441,-224.57,0.00011784,2]
[347615103,1735953041450,-500.0,0.00011784,2]
[347615104,1735953041459,-500.0,0.00011784,2]
[347615105,1735953041468,-500.0,0.00011784,2]
[347615106,1735953041477,-748.87,0.00011784,2]
[347615107,1735953041486,-500.0,0.00011784,2]
[347615108,1735953041494,-500.0,0.00011784,2]
[347615109,1735953041503,-500.0,0.00011784,2]
[347615110,1735953041516,-500.0,0.00011784,2]
[347615111,1735953041525,-603.05,0.00011784,2]
[347615112,1735953041534,-500.0,0.00011784,2]
[347615113,1735953041543,-500.0,0.00011785,2]
[347615114,1735953041551,-500.0,0.00011785,2]
[347615115,1735953041560,-500.0,0.00011785,2]
[347615116,1735953041569,-500.0,0.00011785,2]
[347615117,1735953041754,-500.0,0.00011785,2]
[347615118,1735953041764,-518.58,0.00011785,2]
[347615119,1735953041774,-500.0,0.00011785,2]
[347615120,1735953041783,-553.58,0.00011785,2]
[347615121,1735953041793,-803.15,0.00011785,2]
[347615122,1735953041802,-211.68,0.00011785,2]
[347615123,1735953041811,-500.0,0.00011785,2]
[347615124,1735953041821,-500.0,0.00011785,2]
[347615125,1735953041830,-500.0,0.00011785,2]
[347615126,1735953041839,-262.945933,0.00011785,2]
[347615127,1735953041849,-252.91346307,0.00011785,2]
[347615128,1735953041862,-247.08653693,0.00011785,2]
[347615129,1735953041871,-1092.92524862,0.00011785,2]
[347615130,1735953041883,-1736.68475138,0.00011785,2]
[347615131,1735953041892,-391.5625866,0.00011785,2]
[347615132,1735953041901,-353.280104,0.00011785,2]
[347615133,1735953041911,-504.92,0.00011785,2]
[347615134,1735953041920,-500.0,0.00011785,2]
[347615135,1735953041930,-500.0,0.00011785,2]
[347615136,1735953041939,-500.0,0.00011785,2]
[347615137,1735953041949,-500.0,0.00011785,2]
[347615138,1735953041958,-7.99944549,0.00011785,2]
[347615139,1735953042128,-492.00055451,0.00011785,2]
[347615140,1735953042138,-500.0,0.00011785,2]
[347615141,1735953042147,-593.64642251,0.00011785,2]
[347615142,1735953042361,-354.65628871,0.00011785,2]
[347615143,1735953042373,-1001.67728878,0.00011785,2]
[347615144,1735953042383,-747.16,0.00011785,2]
[347615146,1735953042394,-500.0,0.00011785,2]
[347615147,1735953042403,-500.0,0.00011785,2]
[347615148,1735953042412,-637.72,0.00011785,2]
[347615149,1735953042421,-500.0,0.00011785,2]
[347615150,1735953042431,-500.0,0.00011785,2]
[347615151,1735953042440,-440.72,0.00011785,2]
[347615152,1735953042449,-185.32,0.00011785,2]
[347615153,1735953042458,-500.0,0.00011785,2]
[347615155,1735953042468,-500.0,0.00011785,2]
[347615156,1735953042477,-601.21,0.00011785,2]
[347615157,1735953042486,-649.73,0.00011785,2]
[347615158,1735953042496,-500.0,0.00011785,2]
[347615159,1735953042505,-500.0,0.00011785,2]
[347615160,1735953042515,-500.0,0.00011785,2]
[347615161,1735953042524,-500.0,0.00011785,2]
[347615162,1735953042534,-500.0,0.00011785,2]
[347615163,1735953042543,-500.0,0.00011785,2]
[347615164,1735953042553,-534.18,0.00011785,2]
[347615165,1735953042563,-500.0,0.00011785,2]
[347615166,1735953042573,-500.0,0.00011785,2]
[347615167,1735953042583,-500.0,0.00011785,2]
[347615168,1735953042593,-722.93,0.00011785,2]
[347615169,1735953042603,-500.0,0.00011785,2]
[347615170,1735953042612,-621.7,0.00011785,2]
[347615171,1735953042622,-500.0,0.00011785,2]
[347615172,1735953042632,-531.28,0.00011785,2]
[347615173,1735953042641,-582.38,0.00011785,2]
[347615174,1735953042651,-779.06,0.00011785,2]
[347615175,1735953042661,-1142.25,0.00011785,2]
[347615176,1735953042671,-707.79040219,0.00011785,2]
[347615177,1735953042683,-789.87959781,0.00011785,2]
[347615178,1735953042693,-500.0,0.00011785,2]
[347615179,1735953042703,-500.0,0.00011785,2]
[347615180,1735953042712,-2802.37,0.00011785,2]
[347615181,1735953042721,-1155.21,0.00011785,2]
[347615182,1735953042731,-500.0,0.00011785,2]
[347615183,1735953042741,-895.78692803,0.00011785,2]
[347615184,1735953042752,-487.51515278,0.00011785,2]
[347615196,1735953043091,-258.39677627,0.0001151,2]
[347615200,1735953043105,-241.60322373,0.0001151,2]
[347615204,1735953043114,-500.0,0.00011784,2]
[347615206,1735953043124,-791.66385262,0.00011785,2]
[347615209,1735953043151,-347.5295375,0.00011785,2]
[347615213,1735953043212,-674.79452907,0.00011785,2]
[347615214,1735953043221,-500.0,0.00011785,2]
[347615215,1735953043231,-1958.44,0.00011785,2]
[347615216,1735953043239,-500.0,0.00011785,2]
[347615217,1735953043249,-500.0,0.00011785,2]
[347615218,1735953043259,-473.09,0.00011785,2]
[347615219,1735953043268,-1898.81,0.00011785,2]
[347615220,1735953043277,-500.0,0.00011785,2]
[347615221,1735953043286,-2391.16,0.00011785,2]
[347615222,1735953043295,-479.03,0.00011785,2]
[347615223,1735953043304,-55.56409228,0.00011785,2]
[347615226,1735953045984,-327.7609853,0.00011511,2]
[347615227,1735953045996,-172.2390147,0.00011511,2]
[347615228,1735953046005,-2722.21438582,0.00011785,2]
[347615229,1735953046156,-6265.1315219,0.00011785,2]
[347615230,1735953046165,-2472.55,0.00011785,2]
[347615231,1735953046174,-500.0,0.00011785,2]
[347615232,1735953046183,-415.6,0.00011785,2]
[347615233,1735953046192,-500.0,0.00011785,2]
[347615234,1735953046201,-500.0,0.00011785,2]
[347615235,1735953046210,-5417.17,0.00011785,2]
[347615236,1735953046219,-500.0,0.00011785,2]
[347615237,1735953046227,-500.0,0.00011785,2]
[347615238,1735953046236,-500.0,0.00011786,2]
[347615239,1735953046246,-582.93,0.00011786,2]
[347615240,1735953046255,-500.0,0.00011786,2]
[347615241,1735953046265,-500.0,0.00011786,2]
[347615242,1735953046274,-441.4184781,0.00011786,2]
[347615243,1735953046287,-58.5815219,0.00011786,2]
[347615244,1735953046297,-500.0,0.00011786,2]
[347615245,1735953046306,-594.14,0.00011786,2]
[347615246,1735953046320,-500.0,0.00011786,2]
[347615247,1735953046329,-500.0,0.00011786,2]
[347615249,1735953046338,-500.0,0.00011786,2]
[347615250,1735953046348,-500.0,0.00011786,2]
[347615251,1735953046358,-500.0,0.00011786,2]
[347615252,1735953046366,-500.0,0.00011786,2]
[347615253,1735953046376,-500.0,0.00011786,2]
[347615254,1735953046386,-500.0,0.00011786,2]
[347615255,1735953046399,-500.0,0.00011786,2]
[347615256,1735953046409,-500.0,0.00011786,2]
[347615257,1735953046418,-500.0,0.00011786,2]
[347615258,1735953046428,-279.75,0.00011786,2]
[347615259,1735953046438,-500.0,0.00011786,2]
[347615260,1735953046448,-500.0,0.00011786,2]
[347615261,1735953046457,-500.0,0.00011786,2]
[347615262,1735953046467,-500.0,0.00011786,2]
[347615263,1735953046476,-500.0,0.00011786,2]
[347615264,1735953046486,-500.0,0.00011786,2]
[347615266,1735953046495,-500.0,0.00011786,2]
[347615267,1735953046505,-500.0,0.00011786,2]
[347615268,1735953046514,-197.05,0.00011786,2]
[347615269,1735953046523,-500.0,0.00011786,2]
[347615270,1735953046532,-500.0,0.00011786,2]
[347615271,1735953046541,-500.0,0.00011786,2]
[347615272,1735953046550,-500.0,0.00011786,2]
[347615273,1735953046559,-500.0,0.00011786,2]
[347615274,1735953046569,-715.31,0.00011786,2]
[347615275,1735953046578,-342.96,0.00011786,2]
[347615276,1735953046587,-687.24,0.00011786,2]
[347615277,1735953046597,-499.96,0.00011786,2]
[347615278,1735953046606,-500.0,0.00011786,2]
[347615279,1735953046616,-646.73,0.00011786,2]
[347615280,1735953046625,-500.0,0.00011786,2]
[347615281,1735953046634,-608.34,0.00011786,2]
[347615282,1735953046644,-500.0,0.00011786,2]
[347615283,1735953046653,-500.0,0.00011786,2]
[347615284,1735953046663,-500.0,0.00011786,2]
[347615285,1735953046672,-500.0,0.00011786,2]
[347615286,1735953046681,-500.0,0.00011786,2]
[347615287,1735953046691,-500.0,0.00011786,2]
[347615288,1735953046700,-500.0,0.00011786,2]
[347615289,1735953046709,-1072.21,0.00011786,2]
[347615290,1735953046719,-3421.06,0.00011786,2]
[347615291,1735953046729,-762.66,0.00011786,2]
[347615292,1735953046738,-500.0,0.00011786,2]
[347615293,1735953046747,-969.59,0.00011786,2]
[347615294,1735953046756,-671.7,0.00011786,2]
[347615295,1735953046766,-1096.43,0.00011786,2]
[347615296,1735953046775,-847.13952812,0.00011786,2]
[347615297,1735953046788,-704.38047188,0.00011786,2]
[347615298,1735953046797,-500.0,0.00011786,2]
[347615299,1735953046806,-500.0,0.00011786,2]
[347615300,1735953046816,-500.0,0.00011786,2]
[347615301,1735953046826,-515.51,0.00011786,2]
[347615302,1735953046835,-500.0,0.00011786,2]
[347615303,1735953046845,-318.60412812,0.00011786,2]
[347615304,1735953046857,-351.68587188,0.00011786,2]
[347615305,1735953046868,-500.0,0.00011786,2]
[347615306,1735953046878,-3813.51,0.00011786,2]
[347615307,1735953046888,-500.0,0.00011786,2]
[347615308,1735953046897,-500.0,0.00011786,2]
[347615309,1735953046907,-691.05,0.00011786,2]
[347615310,1735953046917,-500.0,0.00011786,2]
[347615311,1735953046926,-500.0,0.00011786,2]
[347615312,1735953046936,-1570.33,0.00011786,2]
[347615313,1735953046946,-500.0,0.00011786,2]
[347615314,1735953046956,-500.0,0.00011786,2]
[347615315,1735953046965,-500.0,0.00011786,2]
[347615316,1735953046974,-726.17,0.00011786,2]
[347615317,1735953046983,-500.0,0.00011786,2]
[347615318,1735953046993,-2155.54,0.00011786,2]
[347615319,1735953047002,-596.94,0.00011786,2]
[347615320,1735953047013,-941.46,0.00011786,2]
[347615321,1735953047022,-1387.53,0.00011786,2]
[347615322,1735953047033,-500.0,0.00011786,2]
[347615323,1735953047042,-500.0,0.00011786,2]
[347615324,1735953047053,-776.67,0.00011786,2]
[347615325,1735953047064,-596.88,0.00011786,2]
[347615326,1735953047074,-722.13,0.00011786,2]
[347615327,1735953047083,-651.13,0.00011786,2]
[347615328,1735953047093,-500.0,0.00011786,2]
[347615329,1735953047103,-500.0,0.00011786,2]
[347615330,1735953047114,-1007.24,0.00011786,2]
[347615331,1735953047123,-625.44,0.00011786,2]
[347615332,1735953047134,-500.0,0.00011786,2]
[347615333,1735953047143,-2942.0,0.00011786,2]
[347615334,1735953047153,-1132.8,0.00011786,2]
[347615335,1735953047162,-728.03,0.00011786,2]
[347615336,1735953047327,-1010.66,0.00011786,2]
[347615337,1735953047342,-638.04,0.00011786,2]
[347615338,1735953047352,-500.0,0.00011786,2]
[347615339,1735953047362,-1084.91,0.00011786,2]
[347615340,1735953047372,-1023.13,0.00011786,2]
[347615341,1735953047383,-2065.7,0.00011786,2]
[347615342,1735953047393,-500.0,0.00011786,2]
[347615343,1735953047403,-665.59,0.00011786,2]
[347615344,1735953047412,-809.54,0.00011786,2]
[347615345,1735953047421,-500.0,0.00011786,2]
[347615346,1735953047430,-500.0,0.00011786,2]
[347615347,1735953047439,-692.43,0.00011786,2]
[347615348,1735953047449,-1320.88,0.00011786,2]
[347615349,1735953047459,-200.0,0.000118,2]
[347615350,1735953047468,-500.0,0.00011807,2]
[347615351,1735953047478,-1221.81,0.00011807,2]
[347615352,1735953047487,-500.0,0.00011807,2]
[347615353,1735953047496,-925.48,0.00011807,2]
[347615354,1735953047506,-3874.45,0.00011807,2]
[347615355,1735953047515,-500.0,0.00011807,2]
[347615356,1735953047524,-641.64,0.00011807,2]
[347615357,1735953047534,-1441.16,0.00011807,2]
[347615358,1735953047543,-2109.95,0.00011807,2]
[347615359,1735953047553,-500.0,0.00011807,2]
[347615360,1735953047562,-500.0,0.00011807,2]
[347615361,1735953047572,-721.71,0.00011807,2]
[347615362,1735953047581,-843.41,0.00011807,2]
[347615363,1735953047590,-1204.2,0.00011897,2]
[347615364,1735953047601,-1000.0,0.00011897,2]
[347615365,1735953047610,-7371.7106,0.0001196,2]
[347615366,1735953047621,-91031.0,0.00012,2]
[347615367,1735953047630,-200.0,0.00012001,2]
[347615368,1735953047640,-1196.85,0.00012057,2]
[347615369,1735953047649,-1166.32,0.00012057,2]
[347615370,1735953047658,-577.84,0.00012057,2]
[347615371,1735953047667,-1112.27,0.00012057,2]
[347615372,1735953047677,-500.0,0.00012057,2]
[347615373,1735953047686,-1316.86,0.00012057,2]
[347615374,1735953047695,-500.0,0.00012057,2]
[347615375,1735953047705,-500.0,0.00012057,2]
[347615376,1735953047714,-500.0,0.00012057,2]
[347615377,1735953047724,-500.0,0.00012058,2]
[347615378,1735953047733,-500.0,0.00012058,2]
[347615379,1735953047743,-525.64,0.00012058,2]
[347615380,1735953047752,-500.0,0.00012058,2]
[347615381,1735953047761,-543.05,0.00012058,2]
[347615382,1735953047771,-542.61,0.00012058,2]
[347615383,1735953047780,-500.0,0.00012058,2]
[347615384,1735953047790,-500.0,0.00012058,2]
[347615385,1735953047800,-500.0,0.00012058,2]
[347615386,1735953047809,-500.0,0.00012058,2]
[347615387,1735953047819,-500.0,0.00012058,2]
[347615388,1735953047828,-500.0,0.00012058,2]
[347615389,1735953047838,-500.0,0.00012058,2]
[347615390,1735953047848,-500.0,0.00012058,2]
[347615391,1735953047858,-500.0,0.00012058,2]
[347615392,1735953047867,-584.34,0.00012058,2]
[347615393,1735953047877,-500.0,0.00012058,2]
[347615394,1735953047886,-500.0,0.00012058,2]
[347615395,1735953047896,-500.0,0.00012058,2]
[347615396,1735953047906,-536.8,0.00012058,2]
[347615397,1735953047916,-500.0,0.00012058,2]
[347615398,1735953047925,-500.0,0.00012058,2]
[347615399,1735953047935,-500.0,0.00012058,2]
[347615400,1735953047944,-500.0,0.00012058,2]
[347615401,1735953047953,-500.0,0.00012058,2]
[347615402,1735953047963,-500.0,0.00012058,2]
[347615403,1735953047972,-500.0,0.00012058,2]
[347615404,1735953047982,-500.0,0.00012058,2]
[347615405,1735953047991,-500.0,0.00012058,2]
[347615406,1735953048000,-420.11653036,0.00012058,2]
[347615407,1735953050864,157.0,0.00011786,30]
[347615408,1735953051171,157.0,0.00012715,30]
[347615409,1735953303196,157.0,0.00012715,30]
[347615410,1735953602953,157.0,0.00012715,30]
[347615411,1735953614373,1299.26374403,0.00011,14]
[347615412,1735953677152,454.31,8.362e-05,2]
[347615414,1735953903662,157.0,0.00012715,30]
[347615416,1735954010141,-203.3150481,0.00010079,2]
[347615417,1735954010164,-98.38769799,0.00010111,2]
[347615423,1735954170098,-217.9672191,0.00010111,2]
[347615424,1735954202364,157.0,0.00012715,30]
[347615430,1735954232346,-319.25137054,0.00010111,2]
[347615431,1735954232357,-226.13371237,0.00010111,2]
[347615432,1735954232367,-314.99413091,0.00010137,2]
[347615433,1735954232464,-174.86586909,0.00010137,2]
[347615434,1735954232475,-164.96,0.00010161,2]
[347615435,1735954232484,-1000.0,0.00010177,2]
[347615436,1735954232493,-401.24,0.00010255,2]
[347615437,1735954232503,-427.41,0.00010279,2]
[347615438,1735954232513,-300.0,0.00010395,2]
[347615439,1735954232522,-3688.07199336,0.00010396,2]
[347615440,1735954232534,-500.0,0.00010396,2]
[347615441,1735954232545,-972.65235318,0.00010396,2]
[347615442,1735954232556,-5731.04,0.00010396,2]
[347615443,1735954232567,-3091.54325003,0.00010396,2]
[347615444,1735954232580,-336.50062,0.00010396,2]
[347615445,1735954232595,-579.36353194,0.00010396,2]
[347615446,1735954232607,-397.92779334,0.00010396,2]
[347615447,1735954232750,-8602.90045815,0.00010396,2]
[347615449,1735954232759,-250.0,0.00010397,2]
[347615451,1735954232769,-36.60396269,0.00010397,2]
[347615454,1735954238211,-114.38603731,0.00010397,2]
[347615455,1735954238220,-454.31,0.00010626,2]
[347615456,1735954238230,-167.05,0.00010787,2]
[347615458,1735954238239,-299.99,0.00010787,2]
[347615459,1735954238249,-491.27,0.00010806,2]
[347615460,1735954238259,-491.97,0.00010812,2]
[347615461,1735954238268,-507.15,0.00010831,2]
[347615462,1735954238277,-501.89,0.00010889,2]
[347615463,1735954238286,-490.34,0.00010907,2]
[347615464,1735954238296,-508.93,0.00010912,2]
[347615465,1735954238305,-508.46,0.00010919,2]
[347615466,1735954238314,-494.31,0.0001093,2]
[347615467,1735954238323,-490.3,0.00010949,2]
[347615468,1735954238333,-245.26461332,0.0001098,2]
[347615469,1735954238342,-200.0,0.00010984,2]